{"text_format":"2","workbook":"xlsx","n_sheets":3,"sheets":["1.ºCiclo","2.º Ciclo","3.º Ciclo"],"not_rendered":{"charts":0,"images":0,"macros":0,"external_links":0,"defined_names":0,"comments":0,"pivot_tables":0},"unopened":[],"bounds":{"document_bytes":16777216,"sheet_cells":100000,"run_cost":"one","rows_first":2000,"rows_last":500,"rows_between":2000,"halvings":0,"cell_chars":16384,"cell_head_chars":4096},"cells_cut":0,"cells_raw":0,"read":"whole","date_system":"1900"}

{"sheet":"1.ºCiclo","index":0,"n_rows":24,"n_cols":9,"rows_kept":24,"cut":false,"hidden":false,"merged":[]}
[null,"Concelho","Escola","Aluno","Faltas prática","Resposta erradas","Total","Data Nascimento (desempate)"]
[null,"Funchal","Externato de São João","Gonçalo Miguel Girão ",0,0,{"$f":" 200 - (E2*5) - (F2*20)","v":200},"2008-01-02"]
[null,"Santana","EB1/PE/C de Santana","Martim Ferreira da Câmara",0,0,{"$f":" 200 - (E3*5) - (F3*20)","v":200},"2008-01-07"]
[null,"Machico","EB1 /PE / Creche de Água de Pena","Gabriel Ramos Barros",0,0,{"$f":" 200 - (E4*5) - (F4*20)","v":200},"2008-07-26","1º"]
[null,"Machico","Escola Sant'Ana - Externato","Ema Isabel Gomes Ferreira",0,0,{"$f":" 200 - (E5*5) - (F5*20)","v":200},"2008-03-29"]
[null,"Santa Cruz","Externato Santo Condestável","Luís Paulo Araújo Freitas",0,0,{"$f":" 200 - (E6*5) - (F6*20)","v":200},"2008-04-21","3º"]
[null,"Porto Santo","EB1/PE e Creche do Campo de Baixo","Gonçalo Ferreira Drumond",0,0,{"$f":" 200 - (E7*5) - (F7*20)","v":200},"2008-07-11","2º"]
[null,"Calheta","EB1/PE do Lombo do Guiné","Francisco Paulo",1,0,{"$f":" 200 - (E8*5) - (F8*20)","v":195}]
[null,"Santana","EB1/PE/C do Faial e São Roque do Faial","Fátima Carolina Camacho Lopes",2,0,{"$f":" 200 - (E9*5) - (F9*20)","v":190}]
[null,"Câmara de Lobos","EB1/PE Ribeiro Alforra","Ana Catarina Sousa Teixeira",2,0,{"$f":" 200 - (E10*5) - (F10*20)","v":190}]
[null,"Ponta do Sol","EB1/PE Ponta do Sol","Yuri Freitas",2,0,{"$f":" 200 - (E11*5) - (F11*20)","v":190}]
[null,"Porto Moniz","EB1/PE /Creche do Porto Moniz","Sara Isabel Abreu Santos",2,0,{"$f":" 200 - (E12*5) - (F12*20)","v":190}]
[null,"Santa Cruz","EB1/PE Dr. Clemente Tavares","Diogo Bernardo Rodrigues",0,1,{"$f":" 200 - (E13*5) - (F13*20)","v":180}]
[null,"Ribeira Brava","EB1/PE e Creche da Ribeira Brava","Leonor Agrela",1,1,{"$f":" 200 - (E14*5) - (F14*20)","v":175}]
[null,"São Vicente","EB1/PE de Ponta Delgada e Boaventura","José Tomás Jesus Benedito",1,1,{"$f":" 200 - (E15*5) - (F15*20)","v":175}]
[null,"Porto Moniz","EB1/PE /Creche do Porto Moniz","Beatriz Afonso Correia",1,1,{"$f":" 200 - (E16*5) - (F16*20)","v":175}]
[null,"Câmara de Lobos","EB1/PE do Covão","Armando Gomes",2,1,{"$f":" 200 - (E17*5) - (F17*20)","v":170}]
[null,"Calheta","EB1/PE da Calheta","Rodrigo Baeta ",2,1,{"$f":" 200 - (E18*5) - (F18*20)","v":170}]
[null,"São Vicente","EB1/PE de Ponta Delgada e Boaventura","Inês dos Santos Andrade",2,1,{"$f":" 200 - (E19*5) - (F19*20)","v":170}]
[null,"Funchal","Colégio Infante D. Henrique","Rodrigo Sousa Gonçalves ",0,2,{"$f":" 200 - (E20*5) - (F20*20)","v":160}]
[null,"Ponta do Sol","EB1/PE Ponta do Sol","Beatriz Pita",2,2,{"$f":" 200 - (E21*5) - (F21*20)","v":150}]
[null,"Ribeira Brava","EB1/PE da Tabua","Maria Inês Sousa",4,2,{"$f":" 200 - (E22*5) - (F22*20)","v":140}]
[null,"Porto Santo","Externato Nossa Senhora da Conceição","Gonçalo Câmara Dias",4,3,{"$f":" 200 - (E23*5) - (F23*20)","v":120}]
[null,"teste","teste","teste",3,2]

{"sheet":"2.º Ciclo","index":1,"n_rows":27,"n_cols":8,"rows_kept":27,"cut":false,"hidden":false,"merged":[]}
[]
[null,"Escola","Aluno","Faltas Prática","Resposta Erradas","Total","Data nascimento (desempate)"]
[null,"EBS Padre Manuel Álvares","Carolina Carujo",0,0,{"$f":" 200 - (D3*5) - (E3*20)","v":200},"2006-01-17"]
[null,"EBS da Ponta do Sol","Andreína Jesus",0,0,{"$f":" 200 - (D4*5) - (E4*20)","v":200},"2006-12-01","1º"]
[null,"EB23 do Caniço","Ricardo Costa",0,0,{"$f":" 200 - (D5*5) - (E5*20)","v":200},"2006-03-10","3º"]
[null,"EBS Gonçalves Zarco","Tiago Afonso Teles Fonseca",0,0,{"$f":" 200 - (D6*5) - (E6*20)","v":200},"2006-06-28","2º"]
[null,"EBS de Santa Cruz","Pedro Alexandre  Monteiro",2,0,{"$f":" 200 - (D7*5) - (E7*20)","v":190}]
[null,"EBS Prof. Dr. Francisco de Freitas Branco","Américo Dantas",2,0,{"$f":" 200 - (D8*5) - (E8*20)","v":190}]
[null,"EBS D.ª Lucinda Andrade","Luís Góis",0,1,{"$f":" 200 - (D9*5) - (E9*20)","v":180}]
[null,"EBS da Calheta","Diogo Ferreira",0,1,{"$f":" 200 - (D10*5) - (E10*20)","v":180}]
[null,"E.B.123/P.E. Prof. Francisco M.S. Barreto","Lucas Jardim",1,1,{"$f":" 200 - (D11*5) - (E11*20)","v":175}]
[null,"EB23 Dr. Eduardo Brazão de Castro","Paulo Freitas",1,1,{"$f":" 200 - (D12*5) - (E12*20)","v":175}]
[null,"EB123/PE do Curral das Freiras","Sabrina Figueira",3,1,{"$f":" 200 - (D13*5) - (E13*20)","v":165}]
[null,"EB 23 da Torre","Tiago Guilherme Ferreira Rodrigues ",0,2,{"$f":" 200 - (D14*5) - (E14*20)","v":160}]
[null,"Externato da Apresentação de Maria","Madalena Barbeito",0,2,{"$f":" 200 - (D15*5) - (E15*20)","v":160}]
[null,"EB123/PE Porto Cruz","Rúben  Bacanhím",0,2,{"$f":" 200 - (D16*5) - (E16*20)","v":160}]
[null,"EB123/PE Bartolomeu Perestrelo","João Sousa",1,2,{"$f":" 200 - (D17*5) - (E17*20)","v":155}]
[null,"Colegio Infante D. Henrique","Simão Sales",2,2,{"$f":" 200 - (D18*5) - (E18*20)","v":150}]
[null,"EB23 do Estreito de Câmara de Lobos","Pedro Tiago Pestana",3,2,{"$f":" 200 - (D19*5) - (E19*20)","v":145}]
[null,"EBS Dr. Luís Maurílio da Silva Dantas","Emília Santos",3,2,{"$f":" 200 - (D20*5) - (E20*20)","v":145}]
[null,"Escola B+S Bispo D. Manuel Ferreira Cabral","Hugo André Jesus Freitas",0,3,{"$f":" 200 - (D21*5) - (E21*20)","v":140}]
[null,"EBS de Machico","Sara Sofia de Vieiros Lixa",1,3,{"$f":" 200 - (D22*5) - (E22*20)","v":135}]
[null,"EB23 de Santo António","João Bernardo Nóbrega de Gouveia",2,3,{"$f":" 200 - (D23*5) - (E23*20)","v":130}]
[null,"EB23 Dr. Horácio Bento de Gouveia","Salvador Gomes",4,3,{"$f":" 200 - (D24*5) - (E24*20)","v":120}]
[null,"EB23 Dr. Alfredo Ferreira Nóbrega Júnior","Vítor Faria",1,4,{"$f":" 200 - (D25*5) - (E25*20)","v":115}]
[null,"EB23 de São Jorge","Tiago Pacheco",5,3,{"$f":" 200 - (D26*5) - (E26*20)","v":115}]
[null,"teste","teste",1,3]

{"sheet":"3.º Ciclo","index":2,"n_rows":26,"n_cols":8,"rows_kept":26,"cut":false,"hidden":false,"merged":[]}
[]
[null,"Escola","Aluno","Faltas Prática","Resposta Erradas","Total","Data nascimento (desempate)"]
[null,"EBS de Santa Cruz","Octávio Rodrigo Nunes",0,0,{"$f":" 200 - (D3*5) - (E3*20)","v":200},"2004-10-12","1º"]
[null,"EBS D.ª Lucinda Andrade","João Hugo Mendes",0,0,{"$f":" 200 - (D4*5) - (E4*20)","v":200},"2004-02-04"]
[null,"EB123/PE do Curral das Freiras","Diogo Faria",0,0,{"$f":" 200 - (D5*5) - (E5*20)","v":200},"2004-04-21","2º"]
[null,"EBS Prof. Dr. Francisco de Freitas Branco","Carolina Freitas",0,0,{"$f":" 200 - (D6*5) - (E6*20)","v":200},"2004-02-14","3º"]
[null,"EBS da Ponta do Sol","Daniel Tal-Or",1,0,{"$f":" 200 - (D7*5) - (E7*20)","v":195}]
[null,"EBS Gonçalves Zarco","Gonçalo Andrade",2,0,{"$f":" 200 - (D8*5) - (E8*20)","v":190}]
[null,"EBS Padre Manuel Álvares","Gonçalo Abreu",0,1,{"$f":" 200 - (D9*5) - (E9*20)","v":180}]
[null,"EBS da Calheta","Bruno Gouveia",0,1,{"$f":" 200 - (D10*5) - (E10*20)","v":180}]
[null,"EBS Dr. Luís Maurílio da Silva Dantas","Bruno Faria",0,1,{"$f":" 200 - (D11*5) - (E11*20)","v":180}]
[null,"Externato da Apresentação de Maria","Henrique Sousa",0,1,{"$f":" 200 - (D12*5) - (E12*20)","v":180}]
[null,"EB23 do Caniço","Júlio Campos",0,1,{"$f":" 200 - (D13*5) - (E13*20)","v":180}]
[null,"EB23 de São Jorge","Luciano Gomes",0,1,{"$f":" 200 - (D14*5) - (E14*20)","v":180}]
[null,"EB23 Dr. Eduardo Brazão de Castro","Leonor Gomes",0,1,{"$f":" 200 - (D15*5) - (E15*20)","v":180}]
[null,"EB123/PE Bartolomeu Perestrelo","Manuel Andrade",0,1,{"$f":" 200 - (D16*5) - (E16*20)","v":180}]
[null,"EBS de Machico","Fábio Melim",1,1,{"$f":" 200 - (D17*5) - (E17*20)","v":175}]
[null,"Colegio Infante D. Henrique","Luís Guilherme Pereira",1,1,{"$f":" 200 - (D18*5) - (E18*20)","v":175}]
[null,"Escola B+S Bispo D. Manuel Ferreira Cabral","Brayan Alexander Benitez Moreno",2,1,{"$f":" 200 - (D19*5) - (E19*20)","v":170}]
[null,"E.B.123/P.E. Prof. Francisco M.S. Barreto","Mirko Liden",0,2,{"$f":" 200 - (D20*5) - (E20*20)","v":160}]
[null,"EB23 da Torre","Joana Filipa Pinto Figueira",1,2,{"$f":" 200 - (D21*5) - (E21*20)","v":155}]
[null,"EB23 de Santo António","Henrique José Gonçalves França",2,2,{"$f":" 200 - (D22*5) - (E22*20)","v":150}]
[null,"EB123/PE Porto Cruz","José Diogo Abreu Bacanhím",3,2,{"$f":" 200 - (D23*5) - (E23*20)","v":145}]
[null,"EB23 Dr. Alfredo Ferreira Nóbrega Júnior","Tiago Silva",7,1,{"$f":" 200 - (D24*5) - (E24*20)","v":145}]
[null,"EBS Dr. Ângelo Augusto da Silva","Afonso Mendes",1,3,{"$f":" 200 - (D25*5) - (E25*20)","v":135}]
[null,"teste","teste",1,3]